fUSD/lending_fUSD_20240421
["ID","MTS","AMOUNT","RATE_DAILY","PERIOD"]
[323112616,1713673839122,-500.0,0.00017797,2]
[323112617,1713673839132,-1479.99,0.00017797,2]
[323112618,1713673839141,-815.0,0.00017797,2]
[323112619,1713673839150,-500.0,0.00017797,2]
[323112620,1713673839160,-500.0,0.00017797,2]
[323112621,1713673839169,-500.0,0.00017797,2]
[323112622,1713673839179,-500.0,0.00017797,2]
[323112623,1713673839188,-500.0,0.00017797,2]
[323112624,1713673839197,-500.0,0.00017797,2]
[323112625,1713673839206,-500.0,0.00017797,2]
[323112626,1713673839215,-1265.92,0.00017797,2]
[323112627,1713673839225,-607.98,0.00017797,2]
[323112628,1713673839234,-500.0,0.00017797,2]
[323112629,1713673839243,-642.96603714,0.00017797,2]
[323112630,1713673839253,-196.02498249,0.00017797,2]
[323112631,1713673839264,-500.0,0.00017797,2]
[323112632,1713673839274,-500.0,0.00017797,2]
[323112633,1713673839284,-500.0,0.00017797,2]
[323112634,1713673839293,-532.05,0.00017797,2]
[323112635,1713673839303,-500.0,0.00017797,2]
[323112636,1713673839312,-1582.83,0.00017797,2]
[323112637,1713673839321,-500.0,0.00017797,2]
[323112638,1713673839330,-164.6500692,0.00017797,2]
[323112639,1713673839385,-335.3499308,0.00017797,2]
[323112640,1713673839394,-500.0,0.00017797,2]
[323112641,1713673839403,-500.0,0.00017797,2]
[323112642,1713673839412,-1038.06,0.00017797,2]
[323112643,1713673839421,-500.0,0.00017797,2]
[323112644,1713673839430,-500.0,0.00017797,2]
[323112645,1713673839439,-500.0,0.00017797,2]
[323112646,1713673839448,-500.0,0.00017797,2]
[323112647,1713673839458,-1135.39,0.00017797,2]
[323112648,1713673839467,-500.0,0.00017797,2]
[323112649,1713673839476,-500.0,0.00017797,2]
[323112650,1713673839485,-621.49,0.00017797,2]
[323112651,1713673839494,-500.0,0.00017797,2]
[323112652,1713673839503,-1240.32,0.00017797,2]
[323112653,1713673839514,-500.0,0.00017797,2]
[323112654,1713673839523,-500.0,0.00017797,2]
[323112655,1713673839532,-500.0,0.00017797,2]
[323112656,1713673839541,-500.0,0.00017797,2]
[323112657,1713673839550,-500.0,0.00017797,2]
[323112658,1713673839559,-500.0,0.00017797,2]
[323112659,1713673839569,-500.0,0.00017797,2]
[323112660,1713673839578,-500.0,0.00017797,2]
[323112661,1713673839587,-703.588952,0.00017798,2]
[323112662,1713673839607,-1950.0,0.00017396,2]
[323112663,1713673839616,-20265.58168216,0.00017798,2]
[323112664,1713673839628,-1476.94559999,0.00017798,2]
[323112665,1713673839639,-342.56157831,0.00017798,2]
[323112686,1713673843142,-650.65,0.00017396,2]
[323112687,1713673843249,-159.843,0.00017396,2]
[323112688,1713673843260,-132.657,0.00017797,2]
[323112698,1713673846022,-510.74646269,0.00017366,2]
[323112699,1713673846034,-349.72615461,0.00017366,2]
[323112700,1713673846075,-3785.98150562,0.00017366,2]
[323112701,1713673846131,-1830.54341999,0.00015,2]
[323112702,1713673846243,-18337.52872231,0.00015,2]
[323112703,1713673846253,-2673.28587708,0.00017366,2]
[323112704,1713673846262,-367.343,0.00017797,2]
[323112705,1713673846275,-500.0,0.00017797,2]
[323112706,1713673846284,-500.0,0.00017797,2]
[323112707,1713673846292,-76258.52138393,0.00017798,2]
[323112708,1713673846303,-291.27811613,0.00017798,2]
[323112740,1713674970147,-753.05,0.00012267,2]
[323112741,1713674975221,1914.3182,0.00012266,2]
[323112746,1713675032419,-361.19639393,0.00012266,2]
[323112747,1713675032429,-180.56977797,0.00012266,2]
[323112788,1713675038343,-4582.35597345,0.00012265,2]
[323112789,1713675038353,-185.1624455,0.00012266,2]
[323112790,1713675038362,-20168.0721423,0.00012266,2]
[323112791,1713675038372,-1471.40604179,0.00012266,2]
[323112792,1713675038381,-4000.0,0.00013248,2]
[323112793,1713675038390,-2545.09840846,0.00013349,2]
[323112794,1713675038399,-500.0,0.00013902,2]
[323112795,1713675038408,-150.0,0.00013912,2]
[323112796,1713675038417,-676.44,0.00013986,2]
[323112797,1713675038427,-150.0,0.00014141,2]
[323112798,1713675038436,-150.0,0.00014211,2]
[323112799,1713675038445,-150.0,0.00014515,2]
[323112800,1713675038454,-753.05,0.00014531,2]
[323112801,1713675038463,-150.0,0.0001454,2]
[323112802,1713675038472,-150.0,0.00014691,2]
[323112803,1713675038482,-184.92,0.00014807,2]
[323112804,1713675038491,-456.23594,0.00014997,2]
[323112805,1713675038500,-193.07239513,0.00014998,2]
[323112806,1713675038509,-161049.33920521,0.00014999,2]
[323112807,1713675038518,-5000.0,0.00015,2]
[323112808,1713675038529,-500.0,0.00015326,2]
[323112809,1713675038538,-1100.12,0.00015419,2]
[323112810,1713675038547,-858.15,0.00015422,2]
[323112811,1713675038557,-23900.0,0.00015422,2]
[323112812,1713675038566,-240.88,0.00015496,2]
[323112813,1713675038575,-637.6400615,0.000155,2]
[323112814,1713675038584,-177.31,0.00015639,2]
[323112815,1713675038593,-156.78292724,0.00015925,2]
[323112816,1713675038602,-1500.0,0.00015947,2]
[323112818,1713675038611,-150.0,0.00016041,2]
[323112820,1713675038620,-150.0,0.00016079,2]
[323112822,1713675038629,-150.0,0.00016344,2]
[323112824,1713675038671,-300.0,0.00016575,2]
[323112825,1713675038681,-150.0,0.00016657,2]
[323112826,1713675038692,-676.44,0.00016725,2]
[323112827,1713675038701,-753.05,0.00016795,2]
[323112829,1713675038711,-2732.0,0.000168,2]
[323112831,1713675038720,-150.0,0.00016843,2]
[323112833,1713675038729,-150.0,0.00016947,2]
[323112835,1713675038739,-150.0,0.0001701,2]
[323112837,1713675038750,-150.0,0.00017106,2]
[323112839,1713675038759,-150.0,0.00017149,2]
[323112841,1713675038771,-150.0,0.00017208,2]
[323112843,1713675038781,-150.0,0.00017216,2]
[323112845,1713675038791,-150.0,0.00017222,2]
[323112847,1713675038802,-150.0,0.00017265,2]
[323112849,1713675038811,-150.0,0.00017301,2]
[323112851,1713675038820,-858.15,0.0001735,2]
[323112853,1713675038829,-150.0,0.00017356,2]
[323112854,1713675038838,-300.0,0.00017416,2]
[323112855,1713675038849,-150.0,0.00017436,2]
[323112856,1713675038859,-300.0,0.00017468,2]
[323112857,1713675038869,-345.61599546,0.00017493,2]
[323112858,1713675038880,-300.0,0.00017497,2]
[323112859,1713675038890,-157.042113,0.00017498,2]
[323112860,1713675038900,-157.042113,0.00017498,2]
[323112861,1713675038910,-173.042113,0.00017498,2]
[323112862,1713675038920,-173.042113,0.00017498,2]
[323112863,1713675038929,-173.042113,0.00017498,2]
[323112864,1713675038939,-173.042113,0.00017498,2]
[323112865,1713675038948,-150.0,0.00017517,2]
[323112866,1713675038958,-150.0,0.0001757,2]
[323112867,1713675038968,-150.0,0.00017592,2]
[323112868,1713675038978,-1572.946,0.00017596,2]
[323112869,1713675038991,-823.17459213,0.00017597,2]
[323112870,1713675039001,-173.042113,0.00017598,2]
[323112871,1713675039011,-173.042113,0.00017598,2]
[323112872,1713675039022,-173.042113,0.00017598,2]
[323112873,1713675039033,-171.042113,0.00017598,2]
[323112874,1713675039042,-500.0,0.000176,6]
[323112875,1713675039051,-161.929,0.00017626,2]
[323112876,1713675039061,-160.43,0.00017627,2]
[323112877,1713675039071,-1500.0,0.00017634,2]
[323112878,1713675039081,-150.0,0.00017648,2]
[323112879,1713675039091,-1000.0,0.00017663,2]
[323112880,1713675039100,-500.0,0.00017663,2]
[323112881,1713675039110,-300.0,0.00017678,2]
[323112882,1713675039121,-150.0,0.00017688,2]
[323112883,1713675039132,-500.0,0.00017693,2]
[323112884,1713675039142,-582.65,0.00017693,2]
[323112885,1713675039151,-500.0,0.00017693,2]
[323112886,1713675039162,-501.05863141,0.00017693,2]
[323112887,1713675039172,-714.70968049,0.00017694,2]
[323112888,1713675039183,-218.69753517,0.00017694,2]
[323112889,1713675039193,-14649.98074654,0.00017694,2]
[323112890,1713675039203,-155.07490326,0.00017694,2]
[323112891,1713675039213,-1842.45284177,0.00017694,2]
[323112892,1713675039224,-383.04567347,0.00017695,2]
[323112893,1713675039235,-14533.28181367,0.00017696,2]
[323112894,1713675039245,-500.0,0.00017696,2]
[323112895,1713675039256,-1418.33,0.00017696,2]
[323112896,1713675039268,-500.0,0.00017696,2]
[323112897,1713675039279,-41528.8702,0.00017697,2]
[323112898,1713675039289,-500.0,0.00017697,2]
[323112899,1713675039300,-500.0,0.00017697,2]
[323112900,1713675039311,-500.0,0.00017697,2]
[323112901,1713675039322,-500.0,0.00017697,2]
[323112902,1713675039335,-500.0,0.00017697,2]
[323112903,1713675039346,-500.0,0.00017697,2]
[323112904,1713675039358,-500.0,0.00017697,2]
[323112905,1713675039370,-500.0,0.00017697,2]
[323112906,1713675039381,-500.0,0.00017697,2]
[323112907,1713675039392,-500.0,0.00017697,2]
[323112908,1713675039402,-500.0,0.00017697,2]
[323112909,1713675039413,-500.0,0.00017697,2]
[323112910,1713675039425,-500.0,0.00017697,2]
[323112911,1713675039436,-500.0,0.00017697,2]
[323112912,1713675039447,-500.0,0.00017697,2]
[323112913,1713675039457,-500.0,0.00017697,2]
[323112914,1713675039469,-500.0,0.00017697,2]
[323112915,1713675039479,-500.0,0.00017697,2]
[323112916,1713675039489,-500.0,0.00017697,2]
[323112917,1713675039499,-500.0,0.00017697,2]
[323112918,1713675039509,-500.0,0.00017697,2]
[323112919,1713675039520,-500.0,0.00017697,2]
[323112920,1713675039531,-500.0,0.00017697,2]
[323112921,1713675039542,-500.0,0.00017697,2]
[323112922,1713675039553,-500.0,0.00017697,2]
[323112923,1713675039563,-500.0,0.00017697,2]
[323112924,1713675039573,-500.0,0.00017697,2]
[323112925,1713675039584,-500.0,0.00017697,2]
[323112926,1713675039594,-500.0,0.00017697,2]
[323112927,1713675039604,-500.0,0.00017697,2]
[323112928,1713675039615,-500.0,0.00017697,2]
[323112929,1713675039625,-502.64372454,0.00017697,2]
[323112930,1713675039636,-588.53222614,0.00017697,2]
[323112931,1713675039647,-502.07632919,0.00017697,2]
[323112932,1713675039657,-544.35745639,0.00017697,2]
[323112933,1713675039667,-500.0,0.00017697,2]
[323112934,1713675039678,-500.0,0.00017697,2]
[323112935,1713675039689,-500.0,0.00017697,2]
[323112936,1713675039699,-500.0,0.00017697,2]
[323112937,1713675039709,-500.0,0.00017697,2]
[323112938,1713675039718,-500.0,0.00017697,2]
[323112939,1713675039728,-500.0,0.00017697,2]
[323112940,1713675039737,-500.0,0.00017697,2]
[323112941,1713675039746,-500.0,0.00017697,2]
[323112942,1713675039755,-500.0,0.00017697,2]
[323112943,1713675039764,-500.0,0.00017697,2]
[323112944,1713675039773,-500.0,0.00017697,2]
[323112945,1713675039786,-500.0,0.00017697,2]
[323112946,1713675039795,-500.0,0.00017697,2]
[323112947,1713675039804,-500.0,0.00017697,2]
[323112948,1713675039813,-197.83232474,0.00017697,2]
[323112949,1713675039822,-500.0,0.00017697,2]
[323112950,1713675039832,-500.0,0.00017697,2]
[323112951,1713675039841,-500.0,0.00017697,2]
[323112952,1713675039850,-1681.22,0.00017697,2]
[323112953,1713675039859,-500.0,0.00017697,2]
[323112954,1713675039868,-500.0,0.00017697,2]
[323112955,1713675039877,-500.0,0.00017697,2]
[323112956,1713675039886,-1470.02,0.00017697,2]
[323112957,1713675039894,-500.0,0.00017697,2]
[323112958,1713675039904,-500.0,0.00017697,2]
[323112959,1713675039913,-500.0,0.00017697,2]
[323112960,1713675039922,-500.0,0.00017697,2]
[323112961,1713675039932,-556.02,0.00017697,2]
[323112962,1713675039943,-503.58412415,0.00017697,2]
[323112963,1713675039952,-502.92718545,0.00017697,2]
[323112964,1713675039961,-2685.97,0.00017697,2]
[323112965,1713675039970,-502.48180941,0.00017697,2]
[323112966,1713675039980,-500.0,0.00017697,2]
[323112967,1713675039994,-501.19096981,0.00017697,2]
[323112968,1713675040003,-500.0,0.00017697,2]
[323112969,1713675040013,-500.0,0.00017697,2]
[323112970,1713675040023,-502.32250162,0.00017697,2]
[323112971,1713675040033,-500.0,0.00017697,2]
[323112972,1713675040043,-500.0,0.00017697,2]
[323112973,1713675040052,-500.0,0.00017697,2]
[323112974,1713675040061,-500.0,0.00017697,2]
[323112975,1713675040071,-502.03244005,0.00017697,2]
[323112976,1713675040080,-500.0,0.00017697,2]
[323112977,1713675040090,-500.0,0.00017697,2]
[323112978,1713675040100,-500.0,0.00017697,2]
[323112979,1713675040109,-500.0,0.00017697,2]
[323112980,1713675040119,-500.0,0.00017697,2]
[323112981,1713675040129,-500.0,0.00017697,2]
[323112982,1713675040138,-500.0,0.00017697,2]
[323112983,1713675040147,-500.0,0.00017697,2]
[323112984,1713675040157,-500.0,0.00017697,2]
[323112985,1713675040166,-521.28989163,0.00017697,2]
[323112986,1713675040175,-500.0,0.00017697,2]
[323112987,1713675040184,-500.0,0.00017697,2]
[323112988,1713675040193,-500.0,0.00017697,2]
[323112989,1713675040203,-500.0,0.00017697,2]
[323112990,1713675040212,-626.50595435,0.00017697,2]
[323112991,1713675040221,-500.0,0.00017697,2]
[323112992,1713675040230,-500.0,0.00017697,2]
[323112993,1713675040239,-500.0,0.00017697,2]
[323112994,1713675040249,-500.0,0.00017697,2]
[323112995,1713675040258,-500.0,0.00017697,2]
[323112996,1713675040267,-500.0,0.00017697,2]
[323112997,1713675040277,-500.0,0.00017697,2]
[323112998,1713675040286,-478.79363045,0.00017697,2]
[323112999,1713675040295,-502.37786131,0.00017697,2]
[323113000,1713675040304,-222.33175581,0.00017697,2]
[323113001,1713675040313,-500.0,0.00017697,2]
[323113002,1713675040322,-500.0,0.00017697,2]
[323113003,1713675040332,-1089.18,0.00017697,2]
[323113004,1713675040341,-500.0,0.00017697,2]
[323113005,1713675040350,-500.0,0.00017697,2]
[323113006,1713675040362,-500.0,0.00017697,2]
[323113007,1713675040371,-503.03920718,0.00017697,2]
[323113008,1713675040380,-500.0,0.00017697,2]
[323113009,1713675040389,-500.0,0.00017697,2]
[323113010,1713675040398,-64185.5548,0.00017698,2]
[323113011,1713675040407,-359.0477,0.00017699,2]
[323113012,1713675040416,-213.0,0.000177,2]
[323113013,1713675040425,-5966.93991849,0.000177,2]
[323113014,1713675040434,-1000.0,0.000177,6]
[323113015,1713675040443,-250.0,0.000177,2]
[323113016,1713675040452,-250.0,0.000177,2]
[323113017,1713675040461,-222.33175579,0.00017748,2]
[323113018,1713675040470,-150.0,0.00017753,2]
[323113019,1713675040479,-200.0,0.00017756,2]
[323113020,1713675040487,-150.0,0.0001776,2]
[323113021,1713675040496,-150.0,0.00017776,2]
[323113022,1713675040505,-216.0675251,0.00017787,2]
[323113023,1713675040514,-158.76,0.00017788,2]
[323113024,1713675040523,-2230.8094468,0.0001779,3]
[323113025,1713675040533,-500.0,0.00017791,2]
[323113026,1713675040542,-500.0,0.00017791,2]
[323113027,1713675040551,-500.0,0.00017791,2]
[323113028,1713675040560,-500.0,0.00017791,2]
[323113029,1713675040570,-500.0,0.00017791,2]
[323113030,1713675040579,-500.0,0.00017791,2]
[323113031,1713675040588,-1055.51,0.00017791,2]
[323113032,1713675040597,-5766.7702907,0.00017792,2]
[323113033,1713675040606,-2013.4419723,0.00017792,2]
[323113034,1713675040615,-195.9563326,0.00017792,2]
[323113035,1713675040624,-4559.7486344,0.00017792,2]
[323113036,1713675040633,-1763.8338245,0.00017792,2]
[323113038,1713675040642,-155.69916562,0.00017794,2]
[323113040,1713675040651,-1135.15609734,0.00017794,2]
[323113042,1713675040662,-155.6300308,0.00017795,2]
[323113044,1713675040671,-482.67859214,0.00017795,2]
[323113046,1713675040681,-155.85773765,0.00017795,2]
[323113047,1713675040692,-12347.1963557,0.00017796,2]
[323113048,1713675040702,-2289.55304568,0.00017796,2]
[323113049,1713675040713,-29087.65351044,0.00017796,2]
[323113050,1713675040723,-200.65701339,0.00017796,2]
[323113051,1713675040733,-2900.9392868,0.00017796,2]
[323113052,1713675040744,-234.93912718,0.00017796,2]
[323113053,1713675040754,-155.71548954,0.00017796,2]
[323113054,1713675040763,-158.14992381,0.00017796,2]
[323113055,1713675040775,-263.32482511,0.00017796,2]
[323113056,1713675040787,-522.31508165,0.00017796,2]
[323113057,1713675040795,-158.12645968,0.00017796,2]
[323113058,1713675040805,-310.82649469,0.00017796,2]
[323113059,1713675040814,-186.1300807,0.00017796,2]
[323113060,1713675040824,-265.6782419,0.00017796,2]
[323113061,1713675040834,-155.0,0.00017797,2]
[323113062,1713675040848,-500.0,0.00017797,2]
[323113063,1713675040859,-500.0,0.00017797,2]
[323113064,1713675040870,-500.0,0.00017797,2]
[323113065,1713675040883,-308.64539832,0.00017797,2]
[323113066,1713675040894,-500.0,0.00017797,2]
[323113067,1713675040903,-500.0,0.00017797,2]
[323113068,1713675040912,-500.0,0.00017797,2]
[323113069,1713675040921,-158.39054902,0.00017797,2]
[323113070,1713675040930,-500.0,0.00017797,2]
[323113071,1713675040941,-500.0,0.00017797,2]
[323113072,1713675040951,-500.0,0.00017797,2]
[323113073,1713675040962,-211.99978207,0.00017797,2]
[323113074,1713675040971,-500.0,0.00017797,2]
[323113075,1713675040985,-1213.17,0.00017797,2]
[323113076,1713675040995,-294.17905607,0.00017797,2]
[323113077,1713675041005,-345.57,0.00017797,2]
[323113078,1713675041015,-150.0,0.00017797,2]
[323113079,1713675041028,-500.0,0.00017797,2]
[323113080,1713675041037,-500.0,0.00017797,2]
[323113081,1713675041047,-500.0,0.00017797,2]
[323113082,1713675041057,-500.0,0.00017797,2]
[323113083,1713675041067,-500.0,0.00017797,2]
[323113084,1713675041077,-500.0,0.00017797,2]
[323113085,1713675041086,-500.0,0.00017797,2]
[323113086,1713675041097,-500.0,0.00017797,2]
[323113087,1713675041106,-500.0,0.00017797,2]
[323113088,1713675041118,-333.75,0.00017797,2]
[323113089,1713675041129,-500.0,0.00017797,2]
[323113090,1713675041140,-500.0,0.00017797,2]
[323113091,1713675041153,-500.0,0.00017797,2]
[323113092,1713675041162,-500.0,0.00017797,2]
[323113093,1713675041172,-500.0,0.00017797,2]
[323113094,1713675041183,-500.0,0.00017797,2]
[323113095,1713675041193,-500.0,0.00017797,2]
[323113096,1713675041202,-500.0,0.00017797,2]
[323113097,1713675041213,-504.56529815,0.00017797,2]
[323113098,1713675041223,-500.0,0.00017797,2]
[323113099,1713675041233,-500.0,0.00017797,2]
[323113100,1713675041243,-500.0,0.00017797,2]
[323113101,1713675041253,-500.0,0.00017797,2]
[323113102,1713675041263,-500.0,0.00017797,2]
[323113103,1713675041274,-590.56,0.00017797,2]
[323113104,1713675041285,-500.0,0.00017797,2]
[323113105,1713675041296,-500.0,0.00017797,2]
[323113106,1713675041306,-500.0,0.00017797,2]
[323113107,1713675041317,-500.0,0.00017797,2]
[323113108,1713675041326,-500.0,0.00017797,2]
[323113109,1713675041337,-500.0,0.00017797,2]
[323113110,1713675041346,-500.0,0.00017797,2]
[323113111,1713675041355,-1088.08,0.00017797,2]
[323113112,1713675041365,-177.30762787,0.00017797,2]
[323113113,1713675041374,-500.0,0.00017797,2]
[323113114,1713675041383,-500.0,0.00017797,2]
[323113115,1713675041392,-1188.64,0.00017797,2]
[323113116,1713675041402,-500.0,0.00017797,2]
[323113117,1713675041411,-500.0,0.00017797,2]
[323113118,1713675041420,-500.0,0.00017797,2]
[323113119,1713675041429,-642.79063882,0.00017797,2]
[323113120,1713675041438,-500.23423474,0.00017797,2]
[323113121,1713675041447,-500.0,0.00017797,2]
[323113122,1713675041458,-500.0,0.00017797,2]
[323113123,1713675041468,-500.0,0.00017797,2]
[323113124,1713675041479,-500.0,0.00017797,2]
[323113125,1713675041490,-500.0,0.00017797,2]
[323113126,1713675041501,-500.0,0.00017797,2]
[323113127,1713675041511,-500.0,0.00017797,2]
[323113128,1713675041522,-500.0,0.00017797,2]
[323113129,1713675041533,-500.0,0.00017797,2]
[323113130,1713675041543,-500.0,0.00017797,2]
[323113131,1713675041554,-500.0,0.00017797,2]
[323113132,1713675041565,-500.0,0.00017797,2]
[323113133,1713675041576,-500.0,0.00017797,2]
[323113134,1713675041585,-500.0,0.00017797,2]
[323113135,1713675041596,-500.0,0.00017797,2]
[323113136,1713675041606,-500.0,0.00017797,2]
[323113137,1713675041618,-502.28157159,0.00017797,2]
[323113138,1713675041628,-500.0,0.00017797,2]
[323113139,1713675041638,-1296.87,0.00017797,2]
[323113140,1713675041649,-500.0,0.00017797,2]
[323113141,1713675041661,-500.0,0.00017797,2]
[323113142,1713675041672,-500.0,0.00017797,2]
[323113143,1713675041683,-613.40074647,0.00017797,2]
[323113144,1713675041693,-500.0,0.00017797,2]
[323113145,1713675041703,-500.0,0.00017797,2]
[323113146,1713675041714,-500.0,0.00017797,2]
[323113147,1713675041724,-501.84897564,0.00017797,2]
[323113148,1713675041735,-500.0,0.00017797,2]
[323113149,1713675041745,-500.0,0.00017797,2]
[323113150,1713675041755,-500.0,0.00017797,2]
[323113151,1713675041764,-521.92193059,0.00017797,2]
[323113152,1713675041775,-500.0,0.00017797,2]
[323113153,1713675041788,-500.0,0.00017797,2]
[323113154,1713675041799,-500.0,0.00017797,2]
[323113155,1713675041809,-500.0,0.00017797,2]
[323113156,1713675041820,-500.0,0.00017797,2]
[323113157,1713675041830,-500.0,0.00017797,2]
[323113158,1713675041841,-500.0,0.00017797,2]
[323113159,1713675041852,-501.16805785,0.00017797,2]
[323113160,1713675041864,-585.44,0.00017797,2]
[323113161,1713675041875,-500.0,0.00017797,2]
[323113162,1713675041885,-500.0,0.00017797,2]
[323113163,1713675041896,-500.0,0.00017797,2]
[323113164,1713675041906,-500.0,0.00017797,2]
[323113165,1713675041916,-500.0,0.00017797,2]
[323113166,1713675041925,-500.0,0.00017797,2]
[323113167,1713675041935,-523.60614494,0.00017797,2]
[323113168,1713675041945,-501.0089177,0.00017797,2]
[323113169,1713675041955,-500.0,0.00017797,2]
[323113170,1713675041966,-501.17050444,0.00017797,2]
[323113171,1713675041975,-473.71658595,0.00017797,2]
[323113172,1713675041988,-500.0,0.00017797,2]
[323113173,1713675041998,-500.0,0.00017797,2]
[323113174,1713675042009,-511.8366731,0.00017797,2]
[323113175,1713675042019,-500.0,0.00017797,2]
[323113177,1713675042199,-474.45909453,0.00017797,2]
[323113178,1713675042209,-501.57481047,0.00017797,2]
[323113179,1713675042219,-747.58,0.00017797,2]
[323113180,1713675042229,-500.0,0.00017797,2]
[323113181,1713675042238,-500.0,0.00017797,2]
[323113182,1713675042247,-512.86,0.00017797,2]
[323113183,1713675042257,-548.33,0.00017797,2]
[323113184,1713675042267,-1328.81,0.00017797,2]
[323113185,1713675042276,-500.0,0.00017797,2]
[323113186,1713675042287,-500.0,0.00017797,2]
[323113187,1713675042296,-500.0,0.00017797,2]
[323113188,1713675042306,-500.0,0.00017797,2]
[323113189,1713675042315,-500.0,0.00017797,2]
[323113190,1713675042325,-500.0,0.00017797,2]
[323113191,1713675042336,-501.94652484,0.00017797,2]
[323113192,1713675042346,-500.0,0.00017797,2]
[323113193,1713675042357,-500.0,0.00017797,2]
[323113194,1713675042367,-500.0,0.00017797,2]
[323113195,1713675042377,-500.0,0.00017797,2]
[323113196,1713675042386,-500.0,0.00017797,2]
[323113197,1713675042395,-500.0,0.00017797,2]
[323113198,1713675042404,-500.0,0.00017797,2]
[323113199,1713675042413,-500.0,0.00017797,2]
[323113200,1713675042422,-500.0,0.00017797,2]
[323113201,1713675042432,-500.0,0.00017797,2]
[323113202,1713675042441,-501.06762758,0.00017797,2]
[323113203,1713675042451,-500.0,0.00017797,2]
[323113204,1713675042460,-503.838224,0.00017797,2]
[323113205,1713675042469,-500.0,0.00017797,2]
[323113206,1713675042478,-500.0,0.00017797,2]
[323113207,1713675042488,-519.78846521,0.00017797,2]
[323113208,1713675042497,-500.0,0.00017797,2]
[323113209,1713675042508,-500.0,0.00017797,2]
[323113210,1713675042519,-500.0,0.00017797,2]
[323113211,1713675042532,-500.0,0.00017797,2]
[323113212,1713675042544,-500.0,0.00017797,2]
[323113213,1713675042555,-250.0,0.00017797,2]
[323113214,1713675042566,-500.0,0.00017797,2]
[323113215,1713675042576,-500.0,0.00017797,2]
[323113216,1713675042586,-528.99641875,0.00017797,2]
[323113217,1713675042596,-500.0,0.00017797,2]
[323113218,1713675042607,-500.0,0.00017797,2]
[323113219,1713675042617,-500.0,0.00017797,2]
[323113220,1713675042628,-500.0,0.00017797,2]
[323113221,1713675042638,-500.0,0.00017797,2]
[323113222,1713675042648,-626.59,0.00017797,2]
[323113223,1713675042659,-500.0,0.00017797,2]
[323113224,1713675042670,-500.0,0.00017797,2]
[323113225,1713675042681,-508.37845454,0.00017797,2]
[323113226,1713675042691,-500.0,0.00017797,2]
[323113227,1713675042701,-500.0,0.00017797,2]
[323113228,1713675042710,-500.0,0.00017797,2]
[323113229,1713675042720,-413.10304433,0.00017797,2]
[323113230,1713675042729,-500.0,0.00017797,2]
[323113231,1713675042739,-500.0,0.00017797,2]
[323113232,1713675042748,-500.0,0.00017797,2]
[323113233,1713675042759,-500.0,0.00017797,2]
[323113234,1713675042769,-500.0,0.00017797,2]
[323113235,1713675042778,-500.0,0.00017797,2]
[323113236,1713675042791,-500.0,0.00017797,2]
[323113237,1713675042800,-500.0,0.00017797,2]
[323113238,1713675042810,-500.0,0.00017797,2]
[323113239,1713675042819,-500.0,0.00017797,2]
[323113240,1713675042829,-500.0,0.00017797,2]
[323113241,1713675042838,-509.95649053,0.00017797,2]
[323113242,1713675042848,-500.0,0.00017797,2]